Workbook

Sheet BP corrigé par JSC 1er oct17
A1: =+REPT("-",300) -> ------------------------------------------------------------------------------------------------------------------------------------------------------------------------------------------------------------------------------------------------------------------------------------------------------------
A2: BUSINESS PLAN KHEPRISANTE | D2: Année fiscale : 1 Septembre-31 Aout - le 1er oct.2017 | O2: Prévisionnel | P2: Prévisionnel | Q2: CA Realisé | R2: CA Realisé | AF2: Khepri santé 1 | AG2: Centre Nogent | AK2: Khepri santé 2 | AL2: Seconde centre
A3: =A1 -> ------------------------------------------------------------------------------------------------------------------------------------------------------------------------------------------------------------------------------------------------------------------------------------------------------------ | S3: Résultat K€ | Z3: Heure réalisée | AB3: CA Réalisé | AC3: Résultat K€ | AH3: Résultat K€ | AP3: Khepri santé 1 | AQ3: Centre Nogent | AU3: Khepri santé 1 | AV3: Seconde centre | BA3: Khepri santé 1 | BB3: Centre Nogent | BF3: Khepri santé 1 | BG3: Second Centre | BK3: Khepri santé 1 | BL3: Centre Nogent | BP3: Khepri santé 1 | BQ3: Second Centre
A4: CPTES EXPLOITATION | D4: 2015/2016 | F4: 2016/2017 | G4: 2017/2018 | H4: 2018/2019 | I4: 2019/2020 | J4: 2020/2021 | N4: MAD intervenant fixe salle 2 | P4: 2015/2016 | U4: tx d'occupation plein | Z4: 2016/2017 FIXE salle 1 | AE4: 2017/2018 FIXE salle 1 | AM4: Résultat K€ | AR4: Résultat K€ | AW4: Résultat K€ | BC4: Résultat K€ | BH4: Résultat K€ | BM4: Résultat K€ | BR4: Résultat K€
N5: salles | O5: total h/mois à 100% | P5: nbre h/Annuel | Q5: taux réel | R5: vendu | U5: prix horaire | Z5: nbre h/An | AA5: taux réel | AB5: vendu | AE5: nbre h/An | AF5: taux réel | AG5: vendu | AJ5: 2017/2018 FIXE salle 1 | AO5: 2018/2019 FIXE salle 1 | AT5: 2018/2019 FIXE salle 1 | AZ5: 2019/2020 FIXE salle 1 | BE5: 2019/2020 FIXE salle 1 | BJ5: 2020/2021 FIXE salle 1 | BO5: 2020/2021 FIXE salle 1
A6: MAD salle /forfait centre 1 Nogent | B6: 0.75 | D6: =+R27 -> 8.2 | F6: 35.403 | G6: =F6*(1+$B$6) -> 61.95525 | H6: =G6*(1+$B$6) -> 108.4216875 | I6: 189.7379531 | J6: 332.041418 | N6: 2 | O6: =240 -> 240 | P6: =+$O$6*12 -> 2880 | Q6: 1 | R6: =Q6*P6 -> 2880 | S6: 2.8 | U6: CA prévisionnel | Z6: =+P11 -> 1344 | AA6: =+AB6/X10 ->  | AB6: =(1059*12)/1.2 -> 10590 | AC6: 10.59 | AE6: =+Z6 -> 1344 | AF6: =+$AG6/AB6 -> 1.2 | AG6: =1059*12 -> 12708 | AH6: 12.7 | AJ6: nbre h/An | AK6: taux réel | AL6: vendu | AO6: nbre h/An | AP6: taux réel | AQ6: vendu | AT6: nbre h/An | AU6: taux réel | AV6: vendu | AZ6: nbre h/An | BA6: taux réel | BB6: vendu | BE6: nbre h/An | BF6: taux réel | BG6: vendu | BJ6: nbre h/An | BK6: taux réel | BL6: vendu | BO6: nbre h/An | BP6: taux réel | BQ6: vendu
A7: MAD salle /forfait Centre 2 | G7: =F7*(1+$B$6) -> 0 | H7: 0 | I7: 0 | J7: 0 | N7: 2 | O7: 200 | P7: =+O7*12 -> 2400 | Q7: 0 | R7: =+Q7*P7 -> 0 | S7: 0 | U7: Montant/mois | AJ7: =+Z6 -> 1344 | AK7: =+AA6 ->  | AL7: 10590 | AM7: 12.7 | AO7: =+AJ7 -> 1344 | AP7: =+AQ7/AL7 -> 1.2 | AQ7: =1059*12 -> 12708 | AR7: 12.7 | AT7: =+AO7 -> 1344 | AU7: =+AV7/AQ7 -> 1 | AV7: =1059*12 -> 12708 | AW7: 12.7 | AZ7: =+AT7 -> 1344 | BA7: =+AU7 -> 1 | BB7: =1059*12 -> 12708 | BC7: 12.7 | BE7: =+AZ7 -> 1344 | BF7: =+BG7/BB7 -> 1 | BG7: =1059*12 -> 12708 | BH7: 12.7 | BJ7: =+BE7 -> 1344 | BK7: =+BL7/BG7 -> 1 | BL7: =1059*12 -> 12708 | BM7: 12.7 | BO7: =+BJ7 -> 1344 | BP7: =+BQ7/BL7 -> 1 | BQ7: =1059*12 -> 12708 | BR7: 12.7
A8: Abonnement Centre 1 Nogent | B8: 0.5 | D8: =+R14 -> 0 | F8: 20.09 | G8: =F8*(1+$B$8) -> 30.135 | H8: =G8*(1+$B$8) -> 45.2025 | I8: =H8*(0.8+$B$8) -> 58.76325 | J8: =I8*(0.5+$B$8) -> 58.76325 | N8: MAD intervenant fixe salle 1 | P8: 2015/2016 | U8: tx d'occupation plein | Z8: 2016/2017 FIXE salle 2 | AE8: 2017/2018 FIXE salle 2
A9: Abonnement Centre 2 | G9: 0 | H9: 0 | I9: 0 | J9: 0 | N9: salles | O9: total h/mois à 100% | P9: nbre h/Annuel | Q9: taux réel | R9: A vendre | U9: prix horaire | Z9: nbre h/An | AA9: taux réel | AB9: vendu | AE9: nbre h/An | AF9: taux réel | AG9: vendu | AJ9: 2017/2018 FIXE salle 2 | AO9: 2018/2019 FIXE salle 2 | AT9: 2018/2019 FIXE salle 2 | AZ9: 2019/2020 FIXE salle 2 | BE9: 2019/2020 FIXE salle 2 | BJ9: 2020/2021 FIXE salle 2 | BO9: 2020/2021 FIXE salle 2
A10: CA intervenants fixe Centre 1 Nogent | B10: 0.02 | D10: =+S7+S11 -> 5.2 | F10: 15.918 | G10: 36.576 | H10: =G10*(1+$B$10) -> 37.30752 | I10: 38.0536704 | J10: 38.81474381 | N10: 1 | O10: 152 | P10: =+$O$6*12 -> 2880 | Q10: 1 | R10: =Q10*P10 -> 2880 | U10: CA prévisionnel | Z10: =+P7 -> 2400 | AA10: =+AB10/X6 ->  | AB10: =(800*12)/1.2 -> 8000 | AC10: 8 | AE10: =+Z10 -> 2400 | AF10: =+AG10/AB10 -> 1.2 | AG10: =800*12 -> 9600 | AH10: 9.6 | AJ10: nbre h/An | AK10: taux réel | AL10: vendu | AO10: nbre h/An | AP10: taux réel | AQ10: vendu | AT10: nbre h/An | AU10: taux réel | AV10: vendu | AZ10: nbre h/An | BA10: taux réel | BB10: vendu | BE10: nbre h/An | BF10: taux réel | BG10: vendu | BJ10: nbre h/An | BK10: taux réel | BL10: vendu | BO10: nbre h/An | BP10: taux réel | BQ10: vendu
A11: CA intervenants fixe Centre 2 | G11: 0 | H11: 0 | I11: 0 | J11: 0 | N11: 1 | O11: 112 | P11: =+O11*12 -> 1344 | Q11: 1 | R11: =+(X9*P11)/Q11 -> 0 | S11: 5.2 | U11: Montant/mois | Z11: Cumul | AC11: =+AC6+AC10 -> 18.59 | AJ11: =+Z10 -> 2400 | AK11: =+AA10 ->  | AL11: 8000 | AM11: 9.6 | AO11: =+AJ11 -> 2400 | AP11: =+AQ11/AL11 -> 1.2 | AQ11: =800*12 -> 9600 | AR11: 9.6 | AT11: =+AO11 -> 2400 | AU11: =+AV11/AQ11 -> 1 | AV11: =800*12 -> 9600 | AW11: 9.6 | AZ11: =+AT11 -> 2400 | BA11: =+AU11 -> 1 | BB11: =800*12 -> 9600 | BC11: 9.6 | BE11: =+AZ11 -> 2400 | BF11: =+BG11/BB11 -> 1 | BG11: =800*12 -> 9600 | BH11: 9.6 | BJ11: =+BE11 -> 2400 | BK11: =+BL11/BG11 -> 1 | BL11: =800*12 -> 9600 | BM11: 9.6 | BO11: =+BJ11 -> 2400 | BP11: =+BQ11/BL11 -> 1 | BQ11: =800*12 -> 9600 | BR11: 9.6
A12: CA Patients dirigeante | B12: 0.5 | D12: =+U48 -> 7.5 | F12: 11.554 | G12: =F12*(1+$B$12) -> 17.331 | H12: =G12*(1+$B$12) -> 25.9965 | I12: 38.99475 | J12: =I12*(0.5+$B$12) -> 38.99475 | N12: Adhésion au centre | Q12: 2015/2016
A13: PROGRESSION CA | F13: =+F14/D14-1 -> 2.286220096 | G13: =G14/F14-1 -> 1.125698873 | H13: =H14/G14-1 -> 0.4858376271 | I13: 0.5007251813 | J13: 0.4394553945 | N13: nbre souhaité | P13: prix /annuel | Q13: taux réel | R13: CA vendu | Z13: 2015/2016 EVELYNE | AE13: 2017/2018 EVELYNE
A14: Total CA | D14: =D6+D8+D10+D12 -> 20.9 | F14: 68.682 | G14: =+G6+G8+G10+G12 -> 145.99725 | H14: =+H6+H7+H8+H9+H10+H11+H12 -> 216.9282075 | I14: =+I6+I7+I8+I9+I10+I11+I12 -> 325.5496235 | J14: =+J6+J7+J8+J9+J10+J11+J12 -> 468.6141618 | N14: 170 | P14: =+($N$14*41.58)*12 -> 84823.2 | Q14: 0 | R14: =+Q14*P14 -> 0 | Z14: prix/Annuel | AA14: Taux réel | AB14: vendu | AE14: prix/Annuel | AF14: Taux réel | AG14: vendu | AO14: 2018/2019 EVELYNE | AZ14: 2019/2020 EVELYNE | BJ14: 2020/2021 EVELYNE
A15: Location + charges Locatives | B15: 0.02 | D15: 52.9 | F15: 33.332 | G15: =F15*(1+$B$15) -> 33.99864 | H15: =G15*(1+$B$15) -> 34.6786128 | I15: 35.37218506 | J15: 36.07962876
A16: Sous traitance honoraire* | B16: 0.02 | D16: 11.14 | F16: 3.74 | G16: =F16*(1+$B$16) -> 3.8148 | H16: 25 | I16: 35 | J16: 55 | Z16: =+$P$48*$Q$48 -> 34650 | AA16: =+AB16/Z16 -> 0.3001443001 | AB16: 10400 | AC16: 10.4 | AE16: =+$P$48*$Q$48 -> 34650 | AF16: =+AG16/AE16 -> 1.184935065 | AG16: 41058 | AH16: 41.58 | AO16: prix/Annuel | AP16: Taux réel | AQ16: vendu | AZ16: prix/Annuel | BA16: Taux réel | BB16: vendu | BJ16: prix/Annuel | BK16: Taux réel | BL16: vendu
A17: Informaticien sous traitance Maintenance | B17: 0.02 | D17: 0.9 | F17: 0 | G17: =F17*(1+$B$17) -> 0 | H17: =G17*(1+$B$17) -> 0 | I17: 0 | J17: 0 | N17: Commissions de portage salarial | AO17: =+$P$48*$Q$48 -> 34650 | AP17: =+AQ17/AO17 -> 1.184935065 | AQ17: 41058 | AR17: 41.58 | AZ17: =+$P$48*$Q$48 -> 34650 | BA17: =+BB17/AZ17 -> 1.184935065 | BB17: 41058 | BC17: 41.58 | BJ17: =+$P$48*$Q$48 -> 34650 | BK17: =+BL17/BJ17 -> 1.184935065 | BL17: 41058 | BM17: 41.58
A18: Comptabilité | B18: 0.02 | D18: 3 | F18: 4.43 | G18: =F18*(1+$B$18) -> 4.5186 | H18: =G18*(1+$B$18) -> 4.608972 | I18: =H18*(1+$B$18) -> 4.70115144 | J18: =I18*(1+$B$18) -> 4.795174469 | N18: taux | O18: salaires | P18: com
A19: salarié CDD, charges, Stagiaires | B19: 0.02 | D19: 13.1 | F19: 32.299 | G19: 30 | H19: 30 | I19: 40 | J19: 41 | N19: 0.05 | O19: 400000 | P19: =O19*N19 -> 20000 | Z19: Adhésion mensuelle 41,58€ HT
A20: Rému chargée Dirigeant | B20: 0.02 | G20: 25 | H20: 40 | I20: =H20*(1+$B$20) -> 40.8 | J20: 41.616 | Z20: 2016/2017 ADHESION | AE20: 2017/2018 ADHESION
A21: AACE* | B21: 0.02 | D21: 11 | F21: 11.4 | G21: =F21*(0.8+$B$21) -> 9.348 | H21: =G21*(0.8+$B$21) -> 7.66536 | I21: 6.2855952 | J21: 5.154188064 | Z21: prix /annuel | AA21: taux réel | AB21: CA vendu | AE21: prix /annuel | AF21: taux réel | AG21: CA vendu | AJ21: 2017/2018 ADHESION | AO21: 2018/2019 ADHESION | AT21: 2018/2019 ADHESION | AZ21: 2019/2020 ADHESION | BE21: 2019/2020 ADHESION | BJ21: 2020/2021 ADHESION | BO21: 2020/2021 ADHESION
A22: Marketing pub et publications* | B22: 0.02 | D22: 13 | F22: 5.733 | G22: =F22*(3+$B$22) -> 17.31366 | H22: =G22*(1+$B$22) -> 17.6599332 | I22: =H22*(1+$B$22) -> 18.01313186 | J22: =I22*(1+$B$22) -> 18.3733945 | Z22: 84830 | AA22: =+AB22/Z22 -> 0.1498054933 | AB22: 12708 | AC22: 12.97 | AE22: =+($N$14*49.9)*12 -> 101796 | AF22: =+AG22/AE22 -> 0.6977287909 | AG22: 71026 | AH22: 71.26 | AJ22: prix /annuel | AK22: taux réel | AL22: CA vendu | AO22: prix /annuel | AP22: taux réel | AQ22: CA vendu | AT22: prix /annuel | AU22: taux réel | AV22: CA vendu | AZ22: prix /annuel | BA22: taux réel | BB22: CA vendu | BE22: prix /annuel | BF22: taux réel | BG22: CA vendu | BJ22: prix /annuel | BK22: taux réel | BL22: CA vendu | BO22: prix /annuel | BP22: taux réel | BQ22: CA vendu
A23: Assurance et commissions | B23: 0.02 | D23: 1.1 | F23: 1.2 | G23: =F23*(1+$B$23) -> 1.224 | H23: =G23*(1+$B$23) -> 1.24848 | I23: 1.2734496 | J23: 1.298918592 | AJ23: =+($N$14*49.9)*12 -> 101796 | AK23: =+AL23/AJ23 -> 0.3936500452 | AL23: 40072 | AM23: 40.72 | AO23: =+($N$14*49.9)*12 -> 101796 | AP23: =+AQ23/AO23 -> 0.9929663248 | AQ23: 101080 | AR23: 101.8 | AT23: =+($N$14*49.9)*12 -> 101796 | AU23: =+AV23/AT23 -> 0.6977287909 | AV23: 71026 | AW23: 71.26 | AZ23: =+($N$14*49.9)*12 -> 101796 | BA23: =+BB23/AZ23 -> 1.886704782 | BB23: 192059 | BC23: 192.59 | BE23: =+($N$14*49.9)*12 -> 101796 | BF23: =+BG23/BE23 -> 0.9929663248 | BG23: 101080 | BH23: 101.8 | BJ23: =+($N$14*49.9)*12 -> 101796 | BK23: =+BL23/BJ23 -> 1.886704782 | BL23: 192059 | BM23: 192.59 | BO23: =+($N$14*49.9)*12 -> 101796 | BP23: =+BQ23/BO23 -> 0.884907069 | BQ23: 90080 | BR23: 90.8
A24: community manager | B24: 0.012 | C24: 10 | G24: =C24*(1+$B$24) -> 10.12 | H24: =G24*(1+$B$24) -> 10.24144 | I24: =H24*(1+$B$24) -> 10.36433728 | J24: =I24*(1+$B$24) -> 10.48870933
A25: charges divers de gestion courante | B25: 0.02 | D25: 0.5 | F25: =D25*(1+$B$25) -> 0.51 | G25: =E25*(1+$B$25) -> 0 | H25: 0.5202 | I25: 0 | J25: 0.530604 | N25: MAD forfait | P25: 2015/2016 | Z25: tx d'occupation | AA25: =+AA26/P27 -> 0.3147622054 | AB25: 21% réel moyen | AE25: tx d'occupation | AF25: =+AF26/P27 -> 0.6556186869
A26: Entretien des locaux | B26: 0.02 | C26: 3 | F26: 1.365 | G26: =C26*(1+$B$26) -> 3.06 | H26: =G26*(1+$B$26) -> 3.1212 | I26: =H26*(1+$B$26) -> 3.183624 | J26: =I26*(1+$B$26) -> 3.24729648 | N26: salles | O26: total h/mois | P26: nbre h/An à 100% | Q26: taux reel | R26: vendu | Z26: nombre hr Annuel | AA26: 5983 | AE26: nombre hr Annuel | AF26: 12462 | AJ26: tx d'occupation | AK26: =AA25 -> 0.3147622054 | AO26: tx d'occupation | AP26: =+AP27/P27 -> 0.8308080808 | AT26: tx d'occupation | AU26: =+AU27/P27 -> 0.6556186869 | AZ26: tx d'occupation | BA26: =+BA27/$P$27 -> 1.17834596 | BE26: tx d'occupation | BF26: =+BF27/P27 -> 0.8308080808 | BJ26: tx d'occupation | BK26: =+BK27/$P$27 -> 1.073127104 | BO26: tx d'occupation | BP26: =+BP27/P27 -> 0.8308080808
A27: Diverses surprises* | B27: 0.02 | G27: 10 | H27: 10 | I27: 20 | J27: 30 | N27: 8 | O27: =+($N$27*9*6)*4 -> 1728 | P27: =+$O$27*11 -> 19008 | Q27: =+R27/P27 -> 0.0004313973064 | R27: 8.2 | AJ27: nombre hr Annuel | AK27: 5983 | AO27: nombre hr Annuel | AP27: 15792 | AT27: nombre hr Annuel | AU27: 12462 | AZ27: nombre hr Annuel | BA27: 22398 | BE27: nombre hr Annuel | BF27: 15792 | BJ27: nombre hr Annuel | BK27: 20398 | BO27: nombre hr Annuel | BP27: 15792
A28: Amort. Incorpo | B28: 5 | F28: 0 | G28: =F61/$B$28 -> 0.56 | H28: =G61/$B$28 -> 10.448 | I28: =H61/$B$28 -> 8.3584 | J28: =I61/$B$28 -> 6.68672
A29: Amort. corpo | B29: 5 | D29: 5.4 | F29: 4.429 | G29: 2 | H29: 0.4 | P29: Centre 1 Nogent
A30: Dotation aux amortissements | B30: =+SUM(D15:D31) -> 123.04
A31: Impôt et versements assimilés | D31: 11 | F31: 12.925 | G31: 2.754 | H31: 2.754 | I31: 2.754 | J31: 2.754 | P31: tx d'occupation plein | Q31: 1
A32: REX | D32: =+D14-SUM(D15:D31) -> -102.14 | F32: =+F14-SUM(F15:F30) -> -29.756 | G32: =+G14-SUM(G15:G30) -> -4.96045 | H32: 21.3360095 | I32: 102.1977491 | J32: 214.3435276 | L32: =SUM(D15:D31) -> 123.04 | M32: =SUM(F15:F31) -> 111.363 | P32: prix horaire | Q32: 15 | Z32: 2016/2017 Forfait | AE32: 2017/2018 Forfait
A33: REX%CA | D33: =D32/D14 -> -4.88708134 | F33: -0.4332430622 | G33: -0.0339763249 | H33: 0.09835516435 | I33: 0.3139237207 | J33: 0.4573987409 | P33: CA prévisionnel | Q33: =+(Q32*P27)*Q31 -> 285120 | Z33: nbre h/An | AA33: taux reel | AB33: vendu | AE33: nbre h/An | AF33: taux reel | AG33: vendu | AJ33: 2017/2018 Forfait | AO33: 2018/2019 Forfait | AT33: 2018/2019 Forfait | AZ33: 2019/2020 Forfait | BE33: 2019/2020 Forfait | BJ33: 2020/2021 Forfait | BO33: 2020/2021 Forfait
A34: Except subvention | F34: 1.5 | Z34: =+$O$27*11 -> 19008 | AA34: =+AB34/Q33 -> 0.1597993827 | AB34: 45562 | AC34: 45.562 | AE34: =+$O$27*11 -> 19008 | AF34: =+AG34/Q33 -> 0.1999228395 | AG34: 57002 | AH34: 57.02 | AJ34: nbre h/An | AK34: taux reel | AL34: vendu | AO34: nbre h/An | AP34: taux reel | AQ34: vendu | AT34: nbre h/An | AU34: taux reel | AV34: vendu | AZ34: nbre h/An | BA34: taux reel | BB34: vendu | BE34: nbre h/An | BF34: taux reel | BG34: vendu | BJ34: nbre h/An | BK34: taux reel | BL34: vendu | BO34: nbre h/An | BP34: taux reel | BQ34: vendu
A35: Résultat financier | D35: -0.3 | F35: =-10-7 -> -17 | G35: =-8.3-6 -> -14.3 | H35: =-6-5.1 -> -11.1 | I35: =-3.3-3.8 -> -7.1 | J35: 0 | AJ35: =+$O$27*11 -> 19008 | AK35: =+AL35/Q33 -> 0.1263047138 | AL35: 36012 | AM35: 36.12 | AO35: =+$O$27*11 -> 19008 | AP35: =+AQ35/Q33 -> 0.5331299102 | AQ35: 152006 | AR35: 152.06 | AT35: =+$O$27*11 -> 19008 | AU35: =+AV35/Q33 -> 0.1999228395 | AV35: 57002 | AW35: 57.02 | AZ35: =+$O$27*11 -> 19008 | BA35: =+BB35/Q33 -> 0.5331299102 | BB35: 152006 | BC35: 152.06 | BE35: =+$O$27*11 -> 19008 | BF35: =+BG35/Q33 -> 0.5331299102 | BG35: 152006 | BH35: 152.06 | BJ35: =+$O$27*11 -> 19008 | BK35: =+BL35/Q33 -> 0.5331299102 | BL35: 152006 | BM35: 152.06 | BO35: =+$O$27*11 -> 19008 | BP35: =+BQ35/Q33 -> 0.5331299102 | BQ35: 152006 | BR35: 152.06
A36: IS | B36: 0.25 | D36: 0 | F36: 0 | G36: 0 | H36: 0 | I36: =-(I32+I34+I35)*$B$36 -> -23.77443727 | J36: =-(J32+J34+J35)*$B$36 -> -53.5858819 | AB36: =AB34+AB22+AB16+AB10+AB6 -> 87260
A37: RN | D37: =D32+SUM(D34:D36) -> -102.44 | F37: =F32+SUM(F34:F36) -> -45.256 | G37: -19.26045 | H37: 10.2360095 | I37: 71.32331181 | J37: 160.7576457 | L37: Compte courant
L38: Evelyne | M38: 149.4 | Z38: Synthèse du système de réservation:
A39: Cptes financement | D39: 2015/2016 | F39: 2016/2017 | G39: 2017/2018 | H39: 2018/2019 | I39: 2019/2020 | J39: 2020/2021 | L39: Autres | M39: 0 | P39: 8 salles | Z39: heures consommées | AA39: 5263
A40: MBA | D40: =+D37+D28+D29 -> -97.04 | F40: -40.827 | G40: -16.70045 | H40: 21.0840095 | I40: 79.68171181 | J40: 167.4443657 | L40: total | M40: =+M38+M39 -> 149.4 | P40: 8h/jours | Z40: CA HT heures réservées | AA40: 50130
A41: Compte courant +/- | D41: 93.9 | F41: 55.53 | G41: -99.4 | H41: -50 | P41: 6 jours/semaines | Z41: Taux occupation | AA41: mini 21% | AB41: maxi 28%
A42: Capital +/- | D42: 10 | G42: 200 | L42: CAPITAL | P42: 12 mois | Z42: Taux croissance | AA42: 0.97
A43: Dette fi +/- | B43: 62.7 | D43: 52.6 | F43: =-18.2 -> -18.2 | G43: =-7.3-4 -> -11.3 | H43: -12 | I43: -11.1 | L43: EVELYNE | M43: 10 | P43: total 1728 h/mois
A44: BFR+/- | D44: =+D78 -> 6.4 | F44: =+F78 -> 5.077457306 | G44: =+G78 -> 2.357064795 | H44: =+H78 -> 1.962851016 | I44: =+I78 -> -2.592705712 | J44: =+J78 -> -7.243233781 | L44: AUTRES | M44: 0 | P44: soit 19008 h/An
A45: Immo incorpo | D45: -2.8 | G45: -50 | L45: total | M45: =+M43+M44 -> 10
A46: Immo corpo | D46: -44.3 | G46: 0 | O46: C.A Evelyne | R46: 2015/2016
A47: Immo fi | D47: -8 | G47: 0 | O47: Patients/Mois | P47: visite /annuelle | Q47: prix/f/an | R47: prix/Annuel | S47: Taux réel | T47: vendu
A48: Autres actifs | D48: -3.1 | G48: -5 | O48: 15 | P48: =+O48*3*11 -> 495 | Q48: 70 | R48: =+$P$48*$Q$48 -> 34650 | S48: =+T48/R48 -> 0.2165079365 | T48: 7502 | U48: 7.5
A49: Autres passifs
A50: Disponibilités | D50: =SUM(D40:D48) -> 7.66 | F50: =D50+SUM(F40:F48) -> 9.240457306 | G50: =F50+SUM(G40:G48) -> 29.1970721 | H50: -9.756067383 | I50: 56.23293872 | J50: 216.4340706 | O50: AACE*
O51: Décoration,Receptions,Poste,Internet, Telephone,Eau-Gaz,petits equipement,Fourn Admin
A52: BILANS | D52: 2015/2016 | F52: 2016/2017 | G52: 2017/2018 | H52: 2018/2019 | I52: 2019/2020 | J52: 2020/2021
A53: Ca propres | D53: =C53+D37+D42 -> -92.44 | F53: =D53+F37+F42 -> -137.696 | G53: =F53+G37+G42 -> 43.04355 | H53: =G53+H37+H42 -> 53.2795595 | I53: =H53+I37+I42 -> 124.6028713 | J53: =I53+J37+J42 -> 285.360517
A54: Compte courant | D54: =+C54+D41 -> 93.9 | F54: =+D54+F41 -> 149.43 | G54: =+F54+G41 -> 50.03 | H54: =+G54+H41 -> 0.03 | I54: =+H54+I41 -> 0.03 | J54: =+I54+J41 -> 0.03
A55: Dette Financière | D55: =C43+D43 -> 52.6 | F55: =+D55+F43 -> 34.4 | G55: =+F55+G43 -> 23.1 | H55: =+G55+H43 -> 11.1 | I55: =+H55+I43 -> 0 | J55: =+I55+J43 -> 0
A56: Dette fournisseurs | D56: =+D75 -> 3 | F56: =+F75 -> 12.17293151 | G56: 16.45105315 | H56: 20.66186919 | I56: 22.52583605 | J56: 22.18650644
A57: Socfisc | D57: =+D76 -> 3.4 | F57: 2.691583333 | G57: 4.583333333 | H57: 5.833333333 | I57: 6.733333333 | J57: 6.884666667 | O57: Marketing*
A58: Autres passifs | D58: 0 | O58: L'eventail du savoir,NJ Press,Police Municipale,Marie de nogent,FFE,Call Pact….
A59: Total passif | D59: =+SUM(D53:D58) -> 60.46 | F59: =+SUM(F53:F58) -> 60.99851484 | G59: =+SUM(G53:G58) -> 137.2079365 | H59: 90.90476203 | I59: 153.8920407 | J59: 314.4616901
A61: Immo incorpo | D61: =C61-D45-D28 -> 2.8 | F61: =D61-F45-F28 -> 2.8 | G61: =F61-G45-G28 -> 52.24 | H61: 41.792 | I61: 33.4336 | J61: 26.74688 | AS61: 17.07 | AT61: 7 300 € | AU61: 645
A62: Immo corpo | D62: =C62-D46-D29 -> 38.9 | F62: =D62-F46-F29 -> 34.471 | G62: 32.471 | H62: 32.071 | I62: 32.071 | J62: 32.071 | O62: Diverses surprises* | AS62: 17.08 | AT62: 8 103 € | AU62: 716
A63: Immo Fi | D63: =C63-D47 -> 8 | F63: =D63-F47 -> 8 | G63: =F63-G47 -> 8 | H63: =G63-H47 -> 8 | I63: =H63-I47 -> 8 | J63: =I63-J47 -> 8 | O63: Frais d'actes et contentieux | AS63: 17.09 | AT63: 8 994 € | AU63: 795 | AV63: 795 | AW63: 1 206
A64: Stocks | D64: 0 | AS64: 17.1 | AT64: 9 984 € | AU64: 882 | AV64: 882 | AW64: 1 339
A65: Clients | D65: 0 | F65: =+F74 -> 3.387057534 | G65: =+G74 -> 7.199864384 | H65: =+H74 -> 10.69782941 | I65: =+I74 -> 16.05450198 | J65: =+J74 -> 23.10973948 | AS65: 17.11 | AT65: 11 082 € | AU65: 979 | AV65: 979 | AW65: 1 486
A66: Autres actifs | D66: =C66-D48 -> 3.1 | F66: =D66-F48 -> 3.1 | G66: =F66-G48 -> 8.1 | H66: =G66-H48 -> 8.1 | I66: =H66-I48 -> 8.1 | J66: =I66-J48 -> 8.1 | AS66: 17.12 | AT66: 12 301 € | AU66: 1 087 | AV66: 1 087 | AW66: 1 650
A67: Dispo | D67: 7.5 | F67: =F50 -> 9.240457306 | G67: =G50 -> 29.1970721 | H67: =H50 -> -9.756067383 | I67: =I50 -> 56.23293872 | J67: =J50 -> 216.4340706 | AS67: 18.01 | AT67: 13 654 € | AU67: 1 206 | AV67: 1 206 | AW67: 1 831
A68: total actif | D68: =SUM(D61:D67) -> 60.3 | F68: =SUM(F61:F67) -> 60.99851484 | G68: 137.2079365 | H68: 90.90476203 | I68: 153.8920407 | J68: 314.4616901 | AS68: 18.02 | AT68: 15 156 € | AU68: 1 339 | AV68: 1 339 | AW68: 2 033
A69: Check1 | D69: =D68-D59 -> -0.16 | F69: =F68-F59 -> 0 | G69: 0 | H69: 0 | I69: 0 | J69: 0 | AS69: 18.03 | AT69: 16 823 € | AU69: 1 486 | AV69: 1 486 | AW69: 2 256
A70: Check2 | D70: =D67-D50 -> -0.16 | F70: =F67-F50 -> 0 | G70: =G67-G50 -> 0 | H70: =H67-H50 -> 0 | I70: =I67-I50 -> 0 | J70: =J67-J50 -> 0 | AS70: 18.04 | AT70: 18 674 € | AU70: 1 650 | AV70: 1 650 | AW70: 2 504
AS71: 18.05 | AT71: 20 728 € | AU71: 1 831 | AV71: 1 831 | AW71: 2 780
A72: BFR | D72: 2015/2016 | F72: 2016/2017 | G72: 2017/2018 | H72: 2018/2019 | I72: 2019/2020 | J72: 2020/2021 | AS72: 18.06 | AT72: 23 008 € | AU72: 2 033 | AV72: 2 033 | AW72: 3 086
A73: Stocks | D73: =D64 -> 0 | F73: =F64 -> 0 | G73: =G64 -> 0 | H73: =H64 -> 0 | I73: =I64 -> 0 | J73: =J64 -> 0 | AS73: 18.07 | AT73: 25 539 € | AU73: 2 256 | AV73: 2 256 | AW73: 3 425
A74: Clients | D74: =+D65 -> 0 | F74: =F14*(1+F82)/365*F80 -> 3.387057534 | G74: =G14*(1+G82)/365*G80 -> 7.199864384 | H74: =H14*(1+H82)/365*H80 -> 10.69782941 | I74: =I14*(1+I82)/365*I80 -> 16.05450198 | J74: =J14*(1+J82)/365*J80 -> 23.10973948 | AS74: 18.08 | AT74: 28 348 € | AU74: 2 504 | AV74: 2 504 | AW74: 3 802
A75: Fournisseurs | D75: 3 | F75: =SUM(F15:F18,F21:F26)*(1+G82)/365*F81 -> 12.17293151 | G75: =SUM(G15:G18,G21:G26)*(1+H82)/365*G81 -> 16.45105315 | H75: =SUM(H15:H18,H21:H26)*(1+I82)/365*H81 -> 20.66186919 | I75: =SUM(I15:I18,I21:I26)*(1+J82)/365*I81 -> 22.52583605 | J75: =SUM(J15:J18,J21:J26)*(1+K79)/365*J81 -> 22.18650644 | AS75: 18.09 | AT75: 31 466 € | AU75: 2 780
A76: Socfisc | D76: 3.4 | F76: =(F19+F20)/3/12*3 -> 2.691583333 | G76: =(G19+G20)/3/12*3 -> 4.583333333 | H76: =(H19+H20)/3/12*3 -> 5.833333333 | I76: =(I19+I20)/3/12*3 -> 6.733333333 | J76: =(J19+J20)/3/12*3 -> 6.884666667 | AS76: 18.1 | AT76: 34 927 € | AU76: 3 086
A77: BFR | D77: =D73+D74-D75-D76 -> -6.4 | F77: =F73+F74-F75-F76 -> -11.47745731 | G77: -13.8345221 | H77: -15.79737312 | I77: -13.20466741 | J77: -5.961433624 | AS77: 18.11 | AT77: 38 769 € | AU77: 3 425
A78: Delta BFR | D78: =C77-D77 -> 6.4 | F78: =D77-F77 -> 5.077457306 | G78: =F77-G77 -> 2.357064795 | H78: 1.962851016 | I78: -2.592705712 | J78: -7.243233781 | AS78: 18.12 | AT78: 43 034 € | AU78: 3 802
A79: jours stocks | D79: ns | AS79: 19.01 | AT79: 47 768 € | AU79: 4 220
A80: jours clients | D80: ns | F80: 15 | G80: 15 | H80: 15 | I80: 15 | J80: 15 | AS80: 19.02 | AT80: 53 022 € | AU80: 4 684
A81: jours fournisseurs | D81: ns | F81: 60 | G81: 60 | H81: 60 | I81: 60 | J81: 60
A82: TVA | D82: 0.2 | F82: 0.2 | G82: 0.2 | H82: 0.2 | I82: 0.2 | J82: 0.2
